Cogmind - Beta 15 @@@ ROGUE MODE // 2025.06.02 @ 22:15:18 Player: Sen Result: Destroyed by Y-45 Defender with Beam Rifle Performance ------------- Evolutions (2) 1000 Regions Visited (3) 600 Robots Destroyed (15) 75 Value Destroyed (550) 550 Prototype IDs (13) 260 Alien Tech Used (0) 0 Bonus (0) 0 TOTAL SCORE: 2485 Bonus ------- None Cogmind --------- Core Integrity 0/550 Matter 91/300 Energy 100/100 System Corruption 0% Temperature Hot (293) Movement Core (450) Ox8 Location -8/Materials Parts ------- > --- POWER (1) -------- (None) > --- PROPULSION (2) --- (None) > --- UTILITY (5) ------ Large Storage Unit Structural Scanner Machine Analyzer > --- WEAPON (3) ------- Heavy Assault Rifle Minigun > --- INVENTORY (15) --- Light Deuterium Engine Subdweller Optics Sensor Array Terrain Scanner Improved Terrain Scan Processor Flamer Peak State ------------ > --- POWER ------------ Ion Engine Ion Engine Light Ion Engine Subdweller Power Source > --- PROPULSION ------- Subdweller Monowheel Subdweller Monowheel > --- UTILITY ---------- Medium Storage Unit Machine Analyzer Subdweller Optics Improved Utility Shielding Power Bank > --- WEAPON ----------- Pulse Rifle Pulse Rifle Pulse Rifle > --- INVENTORY -------- Light Deuterium Engine Aluminum Leg Carbon-fiber Leg Pulse Rifle Grenade Launcher Flamer [Rating: 37] Favorites ----------- Power Ion Engine Engine Ion Engine Power Core Light Nuclear Core Propulsion Aluminum Leg Leg Aluminum Leg Wheel Subdweller Monowheel Utility Medium Storage Unit Device Power Bank Storage Medium Storage Unit Processor Machine Analyzer Protection Light Armor Plating Weapon Subdweller Laser Energy Gun Subdweller Laser Ballistic Gun Minigun Launcher Grenade Launcher Special Weapon Flamer Build | -11 -10 -10 -8 ------- Run | Yrd Mat Sub Mat Slots Evolved 4 | . . . 4 Power . | . . . . Propulsion . | . . . . Utility 3 | . . . 3 Weapon 1 | . . . 1 Parts Attached 36 | 6 2 12 16 Power 6 | 1 . 3 2 Engine 5 | 1 . 3 1 Core 1 | . . . 1 Reactor . | . . . . Propulsion 6 | 2 . 2 2 Treads . | . . . . Leg 2 | 2 . . . Wheel 4 | . . 2 2 Hover . | . . . . Flight . | . . . . Utility 12 | 1 2 3 6 Device 4 | . . 2 2 Storage 4 | 1 1 . 2 Processor 2 | . 1 . 1 Hackware . | . . . . Protection 2 | . . 1 1 Artifact . | . . . . Weapon 12 | 2 . 4 6 Energy Gun 8 | 2 . 2 4 Energy Cannon . | . . . . Ballistic Gun 2 | . . . 2 Ballistic Cannon . | . . . . Launcher 1 | . . 1 . Special Weapon 1 | . . 1 . Impact Weapon . | . . . . Slashing Weapon . | . . . . Piercing Weapon . | . . . . Special Melee Weapon . | . . . . Unidentified Prototypes . | . . . . Parts Lost 16 | . . 1 15 Power 5 | . . . 5 Propulsion 5 | . . 1 4 Utility 2 | . . . 2 Weapon 4 | . . . 4 Highest Loss Streak 12 | . . 1 12 To Critical Strikes . | . . . . Average Backups 7 | 1 4 7 8 Power 2 | . 2 2 1 Propulsion 1 | . . 1 1 Utility 1 | . . 1 2 Weapon 2 | . 1 2 3 Tool/Special . | . . . . Unused Backups 8 | . . 3 5 Power 3 | . . 2 1 Propulsion 1 | . . . 1 Utility 4 | . . 1 3 Weapon . | . . . . Tool/Special . | . . . . Average Slot Usage (%) 98 | . 92 99 95 Engine 18 | . 14 18 18 Leg 18 | . 28 23 . Wheel 5 | . . 2 15 Device 5 | . . 2 15 Storage 12 | . 14 13 7 Processor 2 | . 6 . 6 Protection 8 | . . 10 6 Energy Gun 19 | . 28 17 22 Launcher 1 | . . 1 . Special Weapon 5 | . . 7 . Peak Build Rating 37 | 6 7 23 37 Average Rating 15 | 4 6 11 31 On Entrance 9 | . 6 7 23 Naked Turns . | . . . . Heaviest Build 46 | 13 18 38 46 Greatest Support 40 | 20 20 40 40 Greatest Overweight (x) 2 | . . 1 2 Average Overweight (x) . | . . . 1 Largest Inventory Capacity 15 | 8 10 10 15 Average Capacity 10 | 6 9 10 11 Most Carried 13 | 2 6 10 13 Average Carried 7 | 1 4 7 8 Final Capacity 15 | 8 10 10 15 Final Carried 6 | 2 6 6 6 Class Distribution -------------------- 68% | Mutant 18% | Skirmisher 8% | Scavenger-Mutant 4% | Scavenger-Skirmisher Dominant Class ---------------- Mutant | -10/Materials Mutant | -10/Subcaves Skirmisher | -8/Materials Resources | -11 -10 -10 -8 ----------- Run | Yrd Mat Sub Mat Matter Collected 619 | 200 . 116 303 Remotely . | . . . . Salvage Created 415 | . . 28 387 Parts 21 | . . 3 18 Haulers Intercepted . | . . . . Recyclers Shooed 1 | . 1 . . Parts Field Recycled . | . . . . Retrieved Matter . | . . . . Parts Self-Destructed 8 | . . 8 . Prevented . | . . . . Kills | -11 -10 -10 -8 ------- Run | Yrd Mat Sub Mat Combat Hostiles Destroyed 14 | . . 1 13 Guns 7 | . . . 7 AOE 6 | . . 1 5 Classes Destroyed 6 | . . 1 5 Watcher 1 | . . . 1 Swarmer 4 | . . . 4 Grunt 4 | . . . 4 Duelist 1 | . . . 1 Sentry 4 | . . . 4 Subdweller 1 | . . 1 . Best Kill Streak 4 | . . 1 4 Combat Bots Only 4 | . . 1 4 Max Kills in Single Turn 3 | . . 1 3 Gunslinging . | . . . . Exploded 3 | . . 1 3 Melee . | . . . . Uniques/NPCs Destroyed . | . . . . Combat | -11 -10 -10 -8 -------- Run | Yrd Mat Sub Mat Hostile Shots Fired 149 | . . 25 124 Missed 35 | . . 10 25 Hits 114 | . . 15 99 Projectile 114 | . . 15 99 AOE 2 | . . 2 . Critical Strikes 9 | . . 1 8 Actively Blocked 1 | . . . 1 Damage Taken 2098 | . . 456 1642 Core 699 | . . 138 561 Absorbed by Shields . | . . . . Redirected to Shielding 97 | . . . 97 Core Remaining (%) 72 | 100 . 44 . Volleys Fired 45 | . 1 17 27 Largest 3 | . 2 2 3 Hottest 189 | . 90 160 189 Shots Fired 106 | . 2 32 72 Gun 87 | . 2 20 65 Cannon . | . . . . Launcher 9 | . . 2 7 Special 10 | . . 10 . Kinetic 8 | . . . 8 Thermal 89 | . 2 30 57 Explosive 9 | . . 2 7 Electromagnetic . | . . . . Robot Hit Streak 16 | . 1 3 16 Robot Miss Streak 2 | . 1 1 2 Penetration Max . | . . . . Secondary Targets 2 | . . . 2 Max Gunslinging Chain 1 | . . . 1 Shots Hit Robots 51 | . 1 7 43 Core Hits 32 | . . 1 31 Critical Kills . | . . . . Critical Parts Destroyed . | . . . . Critical Strikes . | . . . . Melee Attacks . | . . . . Impact . | . . . . Slashing . | . . . . Piercing . | . . . . Sneak Attacks . | . . . . Combat Hostiles . | . . . . Follow-up Attacks . | . . . . Damage Inflicted 1520 | . 14 180 1326 Guns 820 | . 12 92 716 Cannons . | . . . . Explosions 698 | . . 88 610 Melee . | . . . . Ramming 2 | . 2 . . Kinetic 67 | . . . 67 Thermal 1035 | . 12 92 931 Explosive 416 | . . 88 328 Electromagnetic . | . . . . Impact . | . . . . Slashing . | . . . . Piercing . | . . . . Highest Corruption . | . . . . Average Corruption . | . . . . Corruption Purged . | . . . . Corruption Blocked . | . . . . Overload Shots . | . . . . Overflow Damage 26 | . . . 26 Projectiles . | . . . . Explosions 26 | . . . 26 Melee . | . . . . Knockbacks . | . . . . Impact . | . . . . Kinetic . | . . . . Secondary . | . . . . Self-Inflicted Damage 100 | . . . 100 Shots 2 | . . . 2 Rammed . | . . . . Targets Rammed 2 | . 1 1 . Kicked 2 | . 1 1 . Crushed . | . . . . Highest Temperature 519 | . 30 36 519 Average Temperature 173 | . 18 11 217 Received Heat Transfer 693 | . . 81 612 Effects 17 | . . . 17 Shutdowns 6 | . . . 6 Interference 1 | . . . 1 Matter Decay 4 | . . . 4 Damage (minor) 1 | . . . 1 Damage (major) 4 | . . . 4 Damage (core) 1 | . . . 1 Siege Activations . | . . . . Martial Activations . | . . . . Shielding Activations . | . . . . Robots Disrupted . | . . . . Combat Hostiles . | . . . . Robots Corrupted . | . . . . Combat Hostiles . | . . . . Parts Fried . | . . . . Impact Corruptions . | . . . . Robots Melted 1 | . . . 1 Combat Hostiles 1 | . . . 1 Parts Melted 1 | . . . 1 Heat Transferred 1779 | . 25 198 1556 Parts Sabotaged . | . . . . Parts Stolen . | . . . . Parts Stripped . | . . . . Power Chain Reactions . | . . . . Alert | -11 -10 -10 -8 ------- Run | Yrd Mat Sub Mat Maximum Alert Level 1 | . . . 1 Low Security (%) 86 | 100 100 . 81 Level 1 13 | . . . 18 Level 2 . | . . . . Level 3 . | . . . . Level 4 . | . . . . Level 5 . | . . . . High Security . | . . . . Max Security . | . . . . Peak Influence 295 | . 4 . 295 Initial . | . . . . Average 42 | . . . 59 Influence Increases 510 | . 14 . 496 Destroy 0b10 Robot/C 260 | . . . 260 Destroy 0b10 Robot/NC 5 | . . . 5 Destroy Leader 52 | . . . 52 Successful Hack 14 | . 14 . . Disable Machine 45 | . . . 45 Destroy Structure 74 | . . . 74 Lose Combat Pursuer 60 | . . . 60 Influence Decreases 301 | . 14 . 287 Time Decay 161 | . 14 . 147 Lost Part 140 | . . . 140 Squads Dispatched 1 | . . . 1 Investigation . | . . . . Extermination . | . . . . Reinforcement . | . . . . Assault . | . . . . Garrison 1 | . . . 1 Intercept . | . . . . Searches Triggered . | . . . . Construction Impeded . | . . . . Haulers Reinforced . | . . . . Active Scanning Responses . | . . . . Cargo Convoy Interrupts . | . . . . Stealth | -11 -10 -10 -8 --------- Run | Yrd Mat Sub Mat Distress Signals . | . . . . Communications Jammed . | . . . . Distress Signals . | . . . . Times Spotted 36 | . 1 15 20 Peak Tracking Total 6 | . 1 4 6 Tactical Retreats 3 | . . . 3 Traps | -11 -10 -10 -8 ------- Run | Yrd Mat Sub Mat Traps Triggered 1 | . . 1 . Indirectly . | . . . . Trap Hack Attempts . | . . . . Triggered . | . . . . Disarmed . | . . . . Reprogrammed . | . . . . Reused . | . . . . Traps Extracted . | . . . . Installed . | . . . . Triggered . | . . . . Machines | -11 -10 -10 -8 ---------- Run | Yrd Mat Sub Mat Machines Disabled 4 | . . 1 3 Max in Single Turn 2 | . . 1 2 Machines Repaired . | . . . . Machines Dismantled . | . . . . Machines Sabotaged . | . . . . Overloaded Fab Kills . | . . . . Hacking | -11 -10 -10 -8 --------- Run | Yrd Mat Sub Mat Machines Accessed 8 | . 4 2 2 Terminals 3 | . 2 . 1 Fabricators . | . . . . Repair Stations . | . . . . Recycling Units 2 | . 2 . . Scanalyzers . | . . . . Garrison Access 1 | . . . 1 Total Hacks 26 | . 9 13 4 Successful 17 | . 2 13 2 Failed 9 | . 7 . 2 Catastrophic 2 | . 2 . . Database Lockouts . | . . . . Manual . | . . . . Terminals 5 | . 3 . 2 Fabricators . | . . . . Repair Stations . | . . . . Recycling Units 6 | . 6 . . Scanalyzers . | . . . . Garrison Access 2 | . . . 2 Terminal Hacks 16 | . 1 13 2 Record 12 | . . 12 . Prototype ID Bank 1 | . . . 1 Emergency Access Points 2 | . 1 . 1 Proto ID Catalog 1 | . . 1 . Fabricator Hacks . | . . . . Repair Station Hacks . | . . . . Recycling Unit Hacks 1 | . 1 . . Retrieve Components 1 | . 1 . . Scanalyzer . | . . . . Garrison Access Hacks . | . . . . Unauthorized Hacks . | . . . . Terminals . | . . . . Fabricators . | . . . . Repair Stations . | . . . . Recycling Units . | . . . . Scanalyzers . | . . . . Garrison Access . | . . . . Data Cores Recovered . | . . . . Used . | . . . . Hacking Detections 5 | . 3 . 2 Full Trace Events . | . . . . Feedback Events . | . . . . Feedback Blocked . | . . . . Robot Schematics Acquired . | . . . . Robots Built . | . . . . Authchips . | . . . . Time . | . . . . Total Robot Build Rating . | . . . . Part Schematics Acquired . | . . . . Parts Built . | . . . . Authchips . | . . . . Time . | . . . . Total Part Build Rating . | . . . . Parts Repaired . | . . . . Time . | . . . . Parts Recycled . | . . . . Recycled Matter . | . . . . Retrieved Matter . | . . . . Retrieved Components 3 | . 3 . . Parts Scanalyzed . | . . . . Part Schematics Acquired . | . . . . Parts Damaged . | . . . . Bothacking | -11 -10 -10 -8 ------------ Run | Yrd Mat Sub Mat Used RIF Installer . | . . . . Robots Hacked . | . . . . Non-combat . | . . . . Combat . | . . . . Robot Hacks Applied . | . . . . Relay Couplers Released . | . . . . Fabnet Peak Effective % . | . . . . Robots Rewired . | . . . . Allies Hacked . | . . . . Hacks Repelled . | . . . . Allies | -11 -10 -10 -8 -------- Run | Yrd Mat Sub Mat Total Allies . | . . . . Largest Group . | . . . . Highest-Rated Group . | . . . . Highest-Rated Ally . | . . . . Total Orders . | . . . . Ally Attacks . | . . . . Total Damage . | . . . . Kills . | . . . . Allies Corrupted . | . . . . Allies Melted . | . . . . Intel | -11 -10 -10 -8 ------- Run | Yrd Mat Sub Mat Active Infowar (turns) 796 | . . 103 693 Optics 572 | . . 103 469 Structural 224 | . . . 224 Machine Analysis 557 | . . . 557 Robot Analysis Total . | . . . . Derelict Logs Recovered 1 | . . 1 . Drone Launches . | . . . . Drone Recoveries . | . . . . Exploration | -11 -10 -10 -8 ------------- Run | Yrd Mat Sub Mat Turns Passed 3037 | 45 222 2077 693 Spaces Moved 1745 | 31 175 1146 393 Core 4 | 4 . . . Treads . | . . . . Legs 1050 | 27 175 848 . Wheels 691 | . . 298 393 Hover . | . . . . Flight . | . . . . Fastest Speed 50 | 50 120 110 95 Average Speed 150 | 110 120 168 115 Slowest Speed 190 | 120 120 190 130 Overloaded Moves . | . . . . Propulsion Burnouts . | . . . . Robots Hopped . | . . . . Potential Cave-ins . | . . . . Cave-ins Triggered . | . . . . Exploration Rate (%) 31 | 2 25 63 36 Regions Visited 3 Branch Regions 1 Pre-discovered Areas 1 | . . 1 . Known Exits Taken 1 | . 1 . . Unknown Exits Taken 2 | 1 . 1 . Scrap Searched . | . . . . Spaces Dug . | . . . . Terrain Destroyed 74 | . . . 74 Melee . | . . . . Projectile . | . . . . AOE 74 | . . . 74 Terrain Rammed . | . . . . Walls Destroyed . | . . . . Machines Disabled . | . . . . Actions | -11 -10 -10 -8 --------- Run | Yrd Mat Sub Mat Total 2049 | 38 184 1251 576 Wait 165 | . 1 57 107 Move 1742 | 30 174 1145 393 Hop . | . . . . Pick Up 31 | 2 4 11 14 Fast Attach 13 | 6 2 1 4 Attach 15 | . . 4 11 Detach 1 | . . . 1 Swap 16 | . . 7 9 Drop 19 | . 1 8 10 Fire 45 | . 1 17 27 Melee . | . . . . Ram . | . . . . Kick 2 | . 1 1 . Crush . | . . . . Escape Stasis . | . . . . Rewire . | . . . . Trap . | . . . . Miscellaneous . | . . . . Route ------- -11/Scrapyard -10/Materials -10/Subcaves (discovered 3 exits: *Mat x2 / Rec) -8/Materials (discovered 2 exits: *Fac x2) History --------- Turn | Location | Event 5 | -11/Scrapyard | Discovered new exit (range 15) 46 | -11/Scrapyard | Entered Materials 181 | -10/Materials | Discovered new exit (range 7) 266 | -10/Materials | Identified exit to Subcaves 268 | -10/Materials | Entered Subcaves 333 | -10/Subcaves | Build established: Mutant 452 | -10/Subcaves | Shifting Twisted Machinery released Mak. Leg 460 | -10/Subcaves | Ambushed by swarm of Subdwellers 754 | -10/Subcaves | Discovered new exit (range 10) 975 | -10/Subcaves | Discovered new exit (range 11) 1127 | -10/Subcaves | Disturbed a concealed Subdweller 1315 | -10/Subcaves | Shifting Twisted Machinery released Mak. Spear 1910 | -10/Subcaves | Learned location of 1 exit from Materials 1942 | -10/Subcaves | Visited 4L-MR0's lab 1987 | -10/Subcaves | Found Power Bank 1997 | -10/Subcaves | Attached Power Bank, gained temporary slots: Power x3 2068 | -10/Subcaves | Core integrity fell below 50% 2133 | -10/Subcaves | A swath of the cavern ceiling suddenly collapsed 2241 | -10/Subcaves | Visited Clippyterm 2245 | -10/Subcaves | Identified exit to Recycling 2245 | -10/Subcaves | Learned location of Extension (-5) 2345 | -10/Subcaves | Entered Materials 2345 | -8/Materials | Evolved 4 slots: Utility x3, Weapon x1 2346 | -8/Materials | Identified exit to Factory 2694 | -8/Materials | Discovered exit to Factory (range 19) 2773 | -8/Materials | Build established: Skirmisher 2961 | -8/Materials | Garrison activated, responded to threat 3019 | -8/Materials | Core integrity fell below 50% 3027 | -8/Materials | Core integrity fell below 20% 3038 | -8/Materials | Destroyed by Y-45 Defender with Beam Rifle Last Messages --------------- 03024_ Overheating: Thermal Generator damaged (-10). 03024_ Overheating: Machine Analyzer damaged (-11). 03024_ Overheating: Lrg. Storage Unit damaged (-126). 03024_ Overheating: Imp. Utility Shielding damaged (-10). 03024_ The unstable cave ceiling collapses. 03024_ Critical hit (Burn: +37). 03024_ Imp. Utility Shielding destroyed. 03024_ Thermal Generator destroyed. 03027_ Power failure, Lgt. Ion Engine shutdown. 03027_ Overheating: Lgt. Ion Engine damaged (-5). 03028_ Broken Sub. Monowheel destroyed. 03028_ M-13 Machinist repairs Y-45 Defender. 03032_ Lgt. Ion Engine destroyed. 03034_ Overheating: Matter decay (-30). 03035_ Critical hit (Burn: +37). Map ----- +----------------------------------------------------+ | ???????????????""?????????????? | | ???????????????""?????????????? | | ???????????????????????????????? | | ???????????????????????????????? | | ???????????????????????????????? | | ???????????????????????????????? | | ???????????????????????????????? | | ???????????????????????????????? | | ???????????????????#### ?"""""?? | | ???????????????????#### ?"""""?? | | ??######### ??????? # ?"""""?? | | ??##Y###### ???????? # ???????? | | ??## # ##?? ???"""""?? | | ??## ] ##? #??"""""?? | | ??## ! ##? ##??"""""?? | | ??## !! / ### ## ????? | | ???? !! = ### ###+##????? | | ??## =### ### ###???? | | ??##+ # #### ### ####### | | ??## m=g* ###### | | ??## == Y + | | ??## % ###/##### # "" | | ??## % # = [ # # G" | | ??## [ # =*% # + "" | | ??### """ # * # # | | ???## @ R" # + # | | ???####* """ # " " [ ######### | | ???#### # """ ######### | | ?????######### """ ##??????? | | ?????######### ##??????? | | ????????????#############??????? | | ????????????#############??????? | | ???????????????????????????????? | | ???????????????????????????????? | | ???????????????????????????????? | | | | | | | | | | | | | | | | | | | | | | | | | | | | | | | +----------------------------------------------------+ Best States ------------- Heat Dissipation 31 Energy Generation 30 Energy Capacity 525 Matter Stores 300 Matter Capacity 300 Sight Range 21 Terrain Scan Density 10 Armor Coverage 150 Utility Shielding 66 Evasion (%) 55 Item Schematics ----------------- None Robot Schematics ------------------ None Fabricated ------------ Nothing Repaired ---------- Nothing Alien Tech Used ----------------- None Achievements -------------- None Challenges ------------ None Game ------ Seed OmegaTeleporterPrototype Manual? 0 Play Time 00:39:07 Cumulative 34.9 hours Start 2025.06.02 @ 21:34:24 End 2025.06.02 @ 22:15:18 Sessions 3 Manual Loads 0 Difficulty Rogue Special Mode None Game No. 38 Rogue 38 Adventurer 0 Explorer 0 Win Type - Total 0 Types 0/0/0/0/0/0/0/0/0/0 Lore% 14 Gallery% 28 Achievement% 26 Wizard Run 0 Options --------- Layout 1 ASCII 1 Keyboard 0 Movement Numpad Keybinds 0 Fullscreen 1 Font 24/Smallcaps Map View 50x35 Zoom Use 0% Tactical HUD 1 Map Filters NONE Filters NONE Steam 1 RUN: fcb5e2eb-6325-4063-8e9c-2da82b6e43e5